bitfinex/quotes_ETHUSD_20240921
["timestamp","ask_amount","ask_price","bid_price","bid_amount"]
[1726909981638,6.37647698,2550.6,2550.5,3.92079]
[1726909982064,5.14611633,2550.6,2550.5,3.92079]
[1726909982683,5.9652989,2550.6,2550.5,3.92079]
[1726909982886,6.37647698,2550.6,2550.5,3.92079]
[1726909983378,5.14334415,2550.6,2550.5,3.92079]
[1726909983550,6.3737048,2550.6,2550.5,3.92079]
[1726909983756,5.4792756,2550.6,2550.5,3.92079]
[1726909983956,4.13758847,2550.6,2550.5,3.92079]
[1726909985091,2.90722782,2550.6,2550.5,3.92079]
[1726909987688,2.90722782,2550.6,2550.4,3.92086]
[1726909987985,2.4678,2550.5,2550.2,3.92116]
[1726909988210,2.4678,2550.5,2550.2,7.8423]
[1726909988489,2.4678,2550.5,2550.2,3.92114]
[1726909988649,2.4678,2550.5,2550.2,5.65069801]
[1726909989777,2.4678,2550.5,2550.3,3.9211]
[1726909991104,3.07422492,2550.5,2550.2,5.65069801]
[1726909991306,3.07422492,2550.5,2550.1,0.9]
[1726909991307,3.17225455,2550.5,2550.1,0.9]
[1726909991598,2.4678,2550.4,2550.1,4.82136]
[1726909992504,2.4678,2550.4,2550.2,5.65079801]
[1726909992660,2.4678,2550.4,2550.2,9.57197801]
[1726909992862,2.4678,2550.4,2550.2,5.65073801]
[1726909993062,2.4678,2550.4,2550.2,9.57189801]
[1726909993363,2.4678,2550.4,2550.2,5.65071801]
[1726909996821,3.46794185,2550.3,2550.2,5.65071801]
[1726909997196,5.66854661,2550.3,2550.2,5.65071801]
[1726909997389,4.02940938,2550.3,2550.2,5.65071801]
[1726909997712,3.46779393,2550.3,2550.2,5.65071801]
[1726909998014,4.02922526,2550.3,2550.2,5.65071801]
[1726909998222,5.66836249,2550.3,2550.2,3.92116]
[1726909998397,5.66783574,2550.3,2550.2,3.92116]
[1726910000411,3.46731364,2550.3,2550.2,3.92116]
[1726910001720,3.46731364,2550.3,2550.2,5.65071801]
[1726910005639,3.0577214,2550.3,2550.2,5.65071801]
[1726910007192,2.2385674,2550.3,2550.2,5.65071801]
[1726910007624,3.05772761,2550.3,2550.2,5.65071801]
[1726910008118,3.05772761,2550.3,2550.2,5.95071801]
[1726910009893,3.05772761,2550.3,2550.2,7.16345881]
[1726910010092,0.81916021,2550.4,2550.3,3.9211]
[1726910010337,0.81916021,2550.5,2550.4,3.92095]
[1726910010519,4.13597406,2550.6,2550.5,3.92079]
[1726910010520,3.72638803,2550.6,2550.5,3.92079]
[1726910010723,5.96596258,2550.6,2550.5,5.65034801]
[1726910011042,5.96596258,2550.6,2550.5,7.90564801]
[1726910011601,5.96595966,2550.6,2550.5,7.90564801]
[1726910016418,5.96614564,2550.6,2550.5,7.90564801]
[1726910018712,5.96614564,2550.6,2550.5,5.65034801]
[1726910020427,5.96614564,2550.6,2550.5,5.95034801]
[1726910020845,5.96614564,2550.6,2550.5,8.24604801]
[1726910021006,5.96614564,2550.6,2550.5,9.46274781]
[1726910021408,5.96617668,2550.6,2550.5,9.46274781]
[1726910021910,3.80314328,2550.6,2550.5,9.46274781]
[1726910022421,2.90722782,2550.6,2550.5,9.46274781]
[1726910023756,0.81916021,2550.7,2550.6,6.21634]
[1726910023959,0.89582601,2550.7,2550.6,7.54154344]
[1726910024175,3.56610999,2550.9,2550.8,3.92033]
[1726910024353,5.80579489,2550.9,2550.8,3.92033]
[1726910025577,4.98663468,2550.9,2550.8,3.92033]
[1726910025859,5.80586393,2550.9,2550.8,3.92033]
[1726910026291,5.80556604,2550.9,2550.8,3.92033]
[1726910029805,3.64270458,2550.9,2550.8,3.92033]
[1726910030108,4.98581912,2550.9,2550.8,3.92033]
[1726910030598,5.80504837,2550.9,2550.8,3.92033]
[1726910030806,4.98581912,2550.9,2550.8,3.92033]
[1726910031173,5.80563508,2550.9,2550.8,3.92033]
[1726910031498,4.98640583,2550.9,2550.8,3.92033]
[1726910032200,3.6427322,2550.9,2550.8,3.92033]
[1726910033812,5.80547436,2550.9,2550.8,3.92033]
[1726910035004,4.98624511,2550.9,2550.8,3.92033]
[1726910035411,5.80547436,2550.9,2550.8,3.92033]
[1726910035713,3.6427322,2550.9,2550.8,3.92033]
[1726910036017,5.80623323,2550.9,2550.8,3.92033]
[1726910036219,4.46236183,2550.9,2550.8,3.92033]
[1726910036418,5.80664926,2550.9,2550.8,3.92033]
[1726910036759,5.80661166,2550.9,2550.8,3.92033]
[1726910037217,4.98738241,2550.9,2550.8,3.92033]
[1726910037508,4.98740363,2550.9,2550.8,3.92033]
[1726910038022,5.80663288,2550.9,2550.8,3.92033]
[1726910038387,2.4864,2550.8,2550.5,0.6]
[1726910038532,2.4864,2550.8,2550.5,4.52066]
[1726910038533,0.81870174,2550.6,2550.5,4.52066]
[1726910038717,3.05915559,2550.6,2550.5,4.52066]
[1726910040632,3.05948864,2550.6,2550.5,4.52066]
[1726910041546,3.05948864,2550.6,2550.5,0.6]
[1726910041850,6.5576564,2550.6,2550.5,0.6]
[1726910043243,8.76133822,2550.6,2550.5,0.6]
[1726910043706,7.12272774,2550.6,2550.5,0.6]
[1726910044449,8.76206178,2550.6,2550.5,0.6]
[1726910044738,7.1234513,2550.6,2550.5,0.6]
[1726910045914,7.12393199,2550.6,2550.5,0.6]
[1726910046117,6.12393199,2550.6,2550.5,0.6]
[1726910046936,5.52169175,2550.6,2550.5,0.6]
[1726910047151,4.95661589,2550.6,2550.5,0.6]
[1726910047921,3.47021589,2550.6,2550.5,0.6]
[1726910049420,3.47138158,2550.6,2550.5,0.6]
[1726910050869,4.03718973,2550.6,2550.5,0.6]
[1726910051029,3.47187436,2550.6,2550.5,0.6]
[1726910051553,4.03736021,2550.6,2550.5,6.25034801]
[1726910051757,3.47264876,2550.6,2550.5,6.25034801]
[1726910052908,4.03810025,2550.6,2550.5,6.25034801]
[1726910054059,3.47280986,2550.6,2550.5,6.25034801]
[1726910054356,3.47310224,2550.6,2550.5,6.25034801]
[1726910054532,3.47314676,2550.6,2550.5,6.25034801]
[1726910054860,4.03862966,2550.6,2550.5,6.25034801]
[1726910055152,3.47315851,2550.6,2550.5,6.25034801]
[1726910055517,3.47324692,2550.6,2550.5,6.25034801]
[1726910055932,2.24362505,2550.6,2550.5,6.25034801]
[1726910056169,3.47324977,2550.6,2550.5,6.25034801]
[1726910056530,4.03872007,2550.6,2550.5,6.25034801]
[1726910056729,3.47321502,2550.6,2550.5,6.25034801]
[1726910056930,3.47319828,2550.6,2550.5,6.25034801]
[1726910057515,4.0386541,2550.6,2550.5,6.25034801]
[1726910057723,2.24362505,2550.6,2550.5,6.25034801]
[1726910058117,4.0386541,2550.6,2550.5,6.25034801]
[1726910058322,3.47319377,2550.6,2550.5,6.25034801]
[1726910058961,4.03867635,2550.6,2550.5,6.25034801]
[1726910059258,4.03888978,2550.6,2550.5,6.25034801]
[1726910059463,3.47337664,2550.6,2550.5,6.25034801]
[1726910059859,2.24383848,2550.6,2550.5,6.25034801]
[1726910060066,3.47338003,2550.6,2550.5,6.25034801]
[1726910061999,2.24383848,2550.6,2550.5,6.25034801]
[1726910062219,3.06351103,2550.6,2550.5,9.52117681]
[1726910064274,3.06453976,2550.6,2550.5,9.52117681]
[1726910069092,1.22954155,2550.8,2550.6,3.92064]
[1726910069434,3.06577848,2550.7,2550.6,3.92064]
[1726910069808,2.24611516,2550.7,2550.6,3.92064]
[1726910070349,3.06580096,2550.7,2550.6,3.92064]
[1726910070549,3.06583899,2550.7,2550.6,3.92064]
[1726910070705,3.47565671,2550.7,2550.6,3.92064]
[1726910071731,2.24611516,2550.7,2550.6,3.92064]
[1726910072235,3.47565671,2550.7,2550.6,3.92064]
[1726910074156,3.476864,2550.7,2550.6,3.92064]
[1726910078950,3.4775594,2550.7,2550.6,3.92064]
[1726910081428,4.04679314,2550.7,2550.6,3.92064]
[1726910081737,3.47842431,2550.7,2550.6,3.92064]
[1726910081939,4.04677042,2550.7,2550.6,3.92064]
[1726910083068,4.04506025,2550.7,2550.6,3.92064]
[1726910083364,5.68367073,2550.7,2550.6,3.92064]
[1726910083868,5.68207531,2550.7,2550.6,3.92064]
[1726910084364,5.68150011,2550.7,2550.6,3.92064]
[1726910085665,3.88445771,2550.7,2550.6,3.92064]
[1726910085967,5.68150011,2550.7,2550.6,3.92064]
[1726910086328,3.88445771,2550.7,2550.6,3.92064]
[1726910086528,5.68150011,2550.7,2550.6,3.92064]
[1726910086732,4.04288963,2550.7,2550.6,3.92064]
[1726910086970,4.04288963,2550.7,2550.6,4.22064]
[1726910088775,4.04295165,2550.7,2550.6,4.22064]
[1726910089170,4.04246388,2550.7,2550.6,4.22064]
[1726910089476,4.04246388,2550.7,2550.6,0.3]
[1726910089830,5.68107436,2550.7,2550.6,4.22064]
[1726910090029,3.88451973,2550.7,2550.6,4.22064]
[1726910090349,5.68107436,2550.7,2550.6,4.22064]
[1726910090952,4.04246388,2550.7,2550.6,4.22064]
[1726910091178,4.04246388,2550.7,2550.6,4.52064]
[1726910091477,5.68107436,2550.7,2550.6,4.52064]
[1726910093628,5.68253336,2550.7,2550.6,4.52064]
[1726910097682,5.68484117,2550.7,2550.6,4.52064]
[1726910097870,5.68484387,2550.7,2550.6,4.52064]
[1726910098070,5.68484042,2550.7,2550.6,4.52064]
[1726910098684,5.68661447,2550.7,2550.6,4.52064]
[1726910099822,4.04569693,2550.7,2550.6,4.52064]
[1726910101001,5.68682682,2550.7,2550.6,4.52064]
[1726910102112,5.6861296,2550.7,2550.6,4.52064]
[1726910102825,0.82076164,2550.9,2550.8,3.92033]
[1726910102973,0.82076164,2550.9,2550.8,8.11928801]
[1726910102974,0.89986528,2550.9,2550.8,8.11928801]
[1726910103178,3.07041729,2550.9,2550.8,8.11928801]
[1726910103397,3.05879713,2550.9,2550.8,9.81651069]
[1726910103835,3.05879713,2550.9,2550.8,8.08695268]
[1726910104011,4.02212403,2550.9,2550.8,3.92033]
[1726910104324,5.66325392,2550.9,2550.7,3.92047]
[1726910104504,3.46858931,2550.8,2550.7,3.92047]
[1726910104714,4.02196707,2550.8,2550.7,5.65002801]
[1726910105103,5.66263247,2550.8,2550.7,5.65002801]
[1726910105330,5.66263247,2550.8,2550.6,0.6]
[1726910105629,5.66265659,2550.7,2550.6,0.6]
[1726910106385,5.65468778,2550.7,2550.6,0.6]
[1726910108039,5.65488298,2550.7,2550.6,0.6]
[1726910108392,4.01402238,2550.7,2550.6,0.6]
[1726910108669,5.65491652,2550.7,2550.6,0.6]
[1726910109640,4.01402238,2550.7,2550.6,0.6]
[1726910110049,5.65484398,2550.7,2550.6,0.6]
[1726910110202,5.65485633,2550.7,2550.6,0.6]
[1726910110396,5.65483868,2550.7,2550.6,0.6]
[1726910111038,5.6548282,2550.7,2550.6,0.6]
[1726910111234,4.01402238,2550.7,2550.6,0.6]
[1726910111435,4.01410341,2550.7,2550.6,0.6]
[1726910111592,5.65489758,2550.7,2550.6,0.6]
[1726910113249,5.65504357,2550.7,2550.6,0.6]
[1726910113427,5.65504146,2550.7,2550.6,0.6]
[1726910113823,5.65503401,2550.7,2550.6,0.6]
[1726910114767,5.65508585,2550.7,2550.6,0.6]
[1726910115144,5.65510226,2550.7,2550.6,0.6]
[1726910115470,5.65510226,2550.7,2550.6,2.32955801]
[1726910115775,7.50188363,2550.7,2550.6,0.6]
[1726910116076,6.21074,2550.6,2550.5,0.9]
[1726910116228,33.0623791,2550.6,2550.5,0.9]
[1726910116571,36.99513189,2550.6,2550.5,0.9]
[1726910116779,2.4952,2550.3,2549.9,5.65126801]
[1726910117072,1.22978801,2550.0,2549.9,5.65126801]
[1726910117370,3.4592422,2550.0,2549.9,5.65126801]
[1726910118385,2.22999412,2550.0,2549.9,5.65126801]
[1726910119249,3.04901615,2550.0,2549.9,5.65126801]
[1726910120947,3.04481446,2550.0,2549.9,5.65126801]
[1726910122660,0.89031697,2550.0,2549.9,5.65126801]
[1726910123937,2.22585951,2550.0,2549.9,5.65126801]
[1726910124139,0.89031697,2550.0,2549.9,5.65126801]
[1726910124394,3.04470791,2550.0,2549.9,5.65126801]
[1726910124586,0.89031697,2550.0,2549.9,5.65126801]
[1726910125236,0.81902203,2550.1,2549.9,5.65126801]
[1726910126086,0.81902203,2550.1,2549.9,9.57297801]
[1726910126382,2.15413549,2550.1,2549.9,9.57290801]
[1726910126566,0.81902203,2550.1,2549.9,9.57290801]
[1726910126770,1.70907726,2550.1,2549.9,9.57290801]
[1726910127135,0.81902203,2550.1,2549.9,9.57290801]
[1726910127336,1.70900464,2550.1,2549.9,9.57290801]
[1726910127540,2.39565158,2550.1,2549.9,5.65119801]
[1726910127758,1.50566897,2550.1,2549.9,5.65119801]
[1726910128280,0.68664694,2550.1,2549.9,5.65119801]
[1726910128584,1.50566897,2550.1,2549.9,9.57282801]
[1726910128794,0.68664694,2550.1,2549.9,5.65118801]
[1726910128992,1.57658862,2550.1,2549.9,5.65118801]
[1726910129283,0.68664694,2550.1,2549.9,5.65118801]
[1726910131990,0.68664694,2550.1,2549.9,9.57282801]
[1726910132287,0.81902203,2550.2,2549.9,9.57282801]
[1726910132492,3.04528459,2550.2,2549.9,5.65118801]
[1726910132693,0.89051301,2550.1,2549.9,5.65118801]
[1726910132995,0.81902203,2550.2,2549.9,5.65118801]
[1726910133202,3.04531087,2550.2,2549.9,5.65118801]
[1726910133352,0.68678016,2550.1,2549.9,5.65118801]
[1726910141312,0.81902203,2550.2,2550.1,0.3]
[1726910141531,3.04474073,2550.2,2550.1,0.3]
[1726910145256,0.81902203,2550.2,2550.1,0.3]
[1726910145453,3.04500015,2550.2,2550.1,0.6]
[1726910145660,4.28782098,2550.2,2550.1,0.6]
[1726910146027,4.69804703,2550.2,2550.1,0.6]
[1726910146529,11.06290703,2550.2,2550.1,0.6]
[1726910147262,11.61432874,2550.2,2550.1,0.6]
[1726910149263,13.25404609,2550.2,2550.1,0.6]
[1726910149634,13.25404609,2550.2,2550.1,0.9]
[1726910150365,13.25471772,2550.2,2550.1,0.9]
[1726910151996,13.65994466,2550.2,2550.1,0.9]
[1726910153479,2.4436,2549.5,2549.0,2.4411875]
[1726910153692,3.04498679,2549.4,2549.3,3.23295801]
[1726910156095,0.81833704,2549.6,2549.5,3.92233]
[1726910156242,0.89199055,2549.6,2549.5,5.65188801]
[1726910156444,0.81833704,2549.7,2549.5,5.65188801]
[1726910156954,0.81339632,2549.7,2549.6,3.92218]
[1726910157166,3.04361367,2549.7,2549.6,3.92218]
[1726910158588,3.04361367,2549.7,2549.5,1.72955801]
[1726910158793,0.89208694,2549.6,2549.5,5.65180801]
[1726910159397,2.23070967,2549.6,2549.5,5.65180801]
[1726910159896,1.22748531,2549.8,2549.5,5.65180801]
[1726910159897,1.22748531,2549.8,2549.7,3.92203]
[1726910160095,2.23114036,2549.8,2549.7,8.07678801]
[1726910161173,3.45862567,2549.8,2549.7,8.07678801]
[1726910162689,2.23114036,2549.8,2549.7,8.07678801]
[1726910163081,2.23278785,2549.8,2549.7,8.07678801]
[1726910163287,2.23278785,2549.8,2549.7,9.39969325]
[1726910163456,1.22748531,2550.1,2550.0,2.4252]
[1726910163655,2.23309565,2550.1,2550.0,8.07631801]
[1726910166798,3.05264873,2550.1,2550.0,8.07631801]
[1726910167890,3.05419496,2550.1,2550.0,8.07631801]
[1726910170633,0.89385675,2550.1,2550.0,8.95467663]
[1726910170806,0.81955308,2550.2,2550.1,6.34661]
[1726910171119,0.89380747,2550.2,2550.1,6.34661]
[1726910171705,0.81955308,2550.3,2550.2,3.92126]
[1726910172019,3.05388191,2550.3,2550.2,5.65081801]
[1726910172525,0.81955308,2550.4,2550.3,3.9211]
[1726910172689,3.7267809,2550.5,2550.4,3.92095]
[1726910173022,5.96070743,2550.5,2550.4,3.92095]
[1726910173972,5.14136567,2550.5,2550.4,3.92095]
[1726910174434,5.96043482,2550.5,2550.4,3.92095]
[1726910174589,5.14136567,2550.5,2550.4,3.92095]
[1726910175089,5.96044316,2550.5,2550.4,3.92095]
[1726910177239,5.14136567,2550.5,2550.4,3.92095]
[1726910177412,5.96044316,2550.5,2550.4,3.92095]
[1726910177586,5.14136567,2550.5,2550.4,3.92095]
[1726910177796,5.96044316,2550.5,2550.4,3.92095]
[1726910178937,3.80088296,2550.5,2550.4,3.92095]
[1726910180943,2.90722782,2550.5,2550.4,3.92095]
[1726910181811,3.80060809,2550.5,2550.4,3.92095]
[1726910182204,2.90722782,2550.5,2550.4,3.92095]
[1726910188251,2.90722782,2550.5,2550.3,1.72955801]
[1726910188619,2.90722782,2550.5,2550.3,5.65061801]
[1726910188825,2.90722782,2550.5,2550.4,3.92095]
[1726910201321,3.80142338,2550.5,2550.4,3.92095]
[1726910201739,3.8014263,2550.5,2550.4,3.92095]
[1726910202766,5.96209274,2550.5,2550.4,3.92095]
[1726910205227,5.14301525,2550.5,2550.4,3.92095]
[1726910205930,5.96260292,2550.5,2550.4,3.92095]
[1726910206570,5.96474129,2550.5,2550.4,3.92095]
[1726910206874,5.14515362,2550.5,2550.4,3.92095]
[1726910207236,6.37263893,2550.5,2550.4,3.92095]
[1726910207895,5.14515362,2550.5,2550.4,3.92095]
[1726910208101,5.14515362,2550.5,2550.4,4.22095]
[1726910208480,6.37263893,2550.5,2550.4,4.22095]
[1726910209469,6.93707466,2550.5,2550.4,4.22095]
[1726910211082,6.37577073,2550.5,2550.4,4.22095]
[1726910211509,6.93744014,2550.5,2550.4,4.22095]
[1726910212058,8.57408722,2550.5,2550.4,4.52095]
[1726910213098,6.93744014,2550.5,2550.4,4.52095]
[1726910213308,8.57408722,2550.5,2550.4,4.52095]
[1726910213510,6.93744014,2550.5,2550.4,4.52095]
[1726910213958,8.57408722,2550.5,2550.4,4.52095]
[1726910214961,6.93810953,2550.5,2550.4,4.52095]
[1726910215300,6.93849107,2550.5,2550.4,4.52095]
[1726910215515,6.37659438,2550.5,2550.4,4.52095]
[1726910216286,6.38084645,2550.5,2550.4,4.82095]
[1726910216920,6.94313803,2550.5,2550.4,4.82095]
[1726910217417,6.38120993,2550.5,2550.4,4.82095]
[1726910218322,6.38120346,2550.5,2550.4,8.3802898]
[1726910218495,3.47397564,2550.5,2550.4,8.3802898]
[1726910218683,2.24217787,2550.5,2550.4,8.3802898]
[1726910219154,3.06338301,2550.5,2550.4,8.3802898]
[1726910220531,3.06338301,2550.5,2550.4,8.6802898]
[1726910220681,3.06329632,2550.5,2550.4,8.6802898]
[1726910222104,2.24209118,2550.5,2550.4,8.6802898]
[1726910222290,3.063042,2550.5,2550.4,8.6802898]
[1726910224531,3.06226615,2550.5,2550.4,8.9802898]
[1726910230638,3.06226615,2550.5,2550.4,7.69145]
[1726910231189,3.06226615,2550.5,2550.4,5.42095]
[1726910231430,2.24131533,2550.5,2550.4,7.15050801]
[1726910231931,3.4731131,2550.5,2550.4,7.15050801]
[1726910232141,3.4731131,2550.5,2550.4,1.5]
[1726910232142,6.60216551,2550.5,2550.4,1.5]
[1726910232287,8.79992611,2550.5,2550.4,1.5]
[1726910232493,7.16327903,2550.5,2550.4,1.5]
[1726910232803,9.21539819,2550.5,2550.4,1.5]
[1726910234210,9.21472517,2550.5,2550.4,1.5]
[1726910234728,8.80433362,2550.5,2550.4,1.5]
[1726910235427,7.16292707,2550.5,2550.4,1.5]
[1726910235993,9.21472517,2550.5,2550.4,1.5]
[1726910236734,8.80422042,2550.5,2550.4,1.5]
[1726910237617,7.16292707,2550.5,2550.4,1.5]
[1726910238127,9.21472517,2550.5,2550.4,1.5]
[1726910238330,8.80406942,2550.5,2550.4,1.5]
[1726910238506,9.21472517,2550.5,2550.4,1.5]
[1726910238703,7.16292707,2550.5,2550.4,1.5]
[1726910239036,7.16251481,2550.5,2550.4,1.5]
[1726910241201,8.8034708,2550.5,2550.4,1.5]
[1726910241538,7.16251481,2550.5,2550.4,1.5]
[1726910241835,9.21393532,2550.5,2550.4,1.5]
[1726910243016,7.16251481,2550.5,2550.4,1.5]
[1726910243209,8.80334088,2550.5,2550.4,1.5]
[1726910243644,7.16251481,2550.5,2550.4,1.5]
[1726910243840,9.21305018,2550.5,2550.4,1.5]
[1726910244611,8.80268258,2550.5,2550.4,1.5]
[1726910244815,7.16205264,2550.5,2550.4,1.5]
[1726910245318,8.80262286,2550.5,2550.4,1.5]
[1726910245519,7.16205264,2550.5,2550.4,1.5]
[1726910246040,8.80270256,2550.5,2550.4,1.5]
[1726910246235,7.16205264,2550.5,2550.4,1.5]
[1726910246946,8.80266809,2550.5,2550.4,1.5]
[1726910248844,8.80225751,2550.5,2550.4,1.5]
[1726910251272,7.16164206,2550.5,2550.4,1.5]
[1726910251631,8.80205378,2550.5,2550.4,1.5]
[1726910253580,8.80217988,2550.5,2550.4,1.5]
[1726910254440,3.47029249,2550.5,2550.4,9.57980801]
[1726910254735,0.82037224,2550.6,2550.5,3.92079]
[1726910254991,1.23041164,2550.7,2550.6,3.92064]
[1726910254992,0.82037224,2550.7,2550.6,3.92064]
[1726910255276,0.82037224,2550.7,2550.6,5.65019801]
[1726910255277,3.04515712,2550.7,2550.6,5.65019801]
[1726910256553,0.88991395,2550.7,2550.6,5.65019801]
[1726910257058,3.04616272,2550.7,2550.5,2.4293]
[1726910257244,3.04616272,2550.7,2550.5,8.07955801]
[1726910257245,2.22579048,2550.6,2550.5,8.07955801]
[1726910257872,3.45620212,2550.6,2550.5,2.4293]
[1726910258169,9.6369078,2550.6,2550.4,1.5]
[1726910258373,4.51024474,2550.5,2550.4,1.5]
[1726910258545,5.0608836,2550.5,2550.4,1.5]
[1726910258755,4.51021177,2550.5,2550.4,1.5]
[1726910259870,5.06095658,2550.5,2550.4,1.5]
[1726910260070,6.7013683,2550.5,2550.4,1.5]
[1726910260574,5.06095658,2550.5,2550.4,1.5]
[1726910260976,4.51017887,2550.5,2550.4,1.5]
[1726910261273,5.06088993,2550.5,2550.4,1.5]
[1726910261473,6.70130165,2550.5,2550.4,1.5]
[1726910263174,4.51124335,2550.5,2550.4,1.5]
[1726910263475,6.70319566,2550.5,2550.4,1.5]
[1726910266095,10.62398566,2550.5,2550.4,1.5]
[1726910266293,16.51577871,2550.5,2550.4,2e-08]
[1726910266492,16.92516182,2550.5,2550.4,2e-08]
[1726910266789,16.51577871,2550.5,2550.4,2e-08]
[1726910267006,17.14764053,2550.5,2550.4,2e-08]
[1726910267313,18.09662622,2550.5,2550.4,2e-08]
[1726910268578,20.55551343,2550.5,2550.4,2e-08]
[1726910271801,20.14625985,2550.5,2550.4,2e-08]
[1726910274514,3.92148,2550.1,2549.7,1.72955801]
[1726910274734,0.8193042,2549.9,2549.7,1.72955801]
[1726910274887,2.22586111,2549.8,2549.7,1.72955801]
[1726910275410,0.89084388,2549.8,2549.7,1.72955801]
[1726910275717,0.88997634,2549.8,2549.7,1.72955801]
[1726910276216,3.04460084,2549.8,2549.7,1.72955801]
[1726910276436,2.2252894,2549.8,2549.7,1.72955801]
[1726910276574,0.88997634,2549.8,2549.7,1.72955801]
[1726910277115,2.22527103,2549.8,2549.7,1.72955801]
[1726910277409,0.89019728,2549.8,2549.7,1.72955801]
[1726910278913,3.32019728,2549.8,2549.3,6.1788]
[1726910279104,3.04470032,2549.7,2549.4,1.72955801]
[1726910279300,0.89019728,2549.6,2549.4,1.72955801]
[1726910279618,0.8193042,2549.7,2549.4,1.72955801]
[1726910279919,0.88994708,2549.6,2549.4,1.72955801]
[1726910280072,0.8193042,2549.7,2549.4,1.72955801]
[1726910280424,3.04517813,2549.6,2549.4,1.72955801]
[1726910280712,0.8193042,2549.6,2549.4,1.72955801]
[1726910281013,0.8193042,2549.7,2549.4,1.72955801]
[1726910281315,0.89029065,2549.6,2549.4,1.72955801]
[1726910281516,0.8193042,2549.7,2549.4,1.72955801]
[1726910281682,3.2493042,2549.8,2549.4,1.72955801]
[1726910281885,3.04485188,2549.7,2549.4,1.72955801]
[1726910282085,4.7413442,2549.7,2549.3,6.1788]
[1726910282328,0.8193042,2549.7,2549.4,1.72955801]
[1726910282611,0.89003814,2549.6,2549.4,1.72955801]
[1726910283038,0.8193042,2549.7,2549.4,1.72955801]
[1726910283340,0.89000699,2549.6,2549.4,1.72955801]
[1726910283637,0.8193042,2549.7,2549.4,1.72955801]
[1726910283847,3.04405167,2549.7,2549.4,1.72955801]
[1726910284027,0.8193042,2549.7,2549.4,1.72955801]
[1726910284205,2.22475595,2549.7,2549.4,1.72955801]
[1726910284539,0.8193042,2549.7,2549.4,1.72955801]
[1726910284747,2.15398454,2549.7,2549.4,1.72955801]
[1726910284897,0.8193042,2549.7,2549.4,1.72955801]
[1726910285100,3.04377305,2549.7,2549.4,1.72955801]
[1726910285313,0.8193042,2549.7,2549.4,1.72955801]
[1726910285515,6.96555033,2549.7,2549.4,1.72955801]
[1726910285702,3.92206,2549.7,2549.4,1.72955801]
[1726910292328,6.35206,2549.7,2549.4,1.72955801]
[1726910293328,7.1713642,2549.7,2549.4,1.72955801]
[1726910293552,11.0935242,2549.7,2549.4,1.72955801]
[1726910293938,7.1713642,2549.7,2549.3,2.2563]
[1726910294139,6.35206,2549.7,2549.3,2.2563]
[1726910294315,7.1713642,2549.7,2549.2,1.72955801]
[1726910294517,11.0934942,2549.7,2549.2,1.72955801]
[1726910295059,7.1713642,2549.7,2549.2,1.72955801]
[1726910295356,7.26942482,2549.7,2549.2,1.72955801]
[1726910295550,7.26942482,2549.7,2549.2,5.65234801]
[1726910297227,7.1713642,2549.7,2549.2,5.65234801]
[1726910297741,7.1713642,2549.7,2549.2,6.83927856]
[1726910299053,4.7413642,2549.7,2549.3,2.4379]
[1726910299272,3.92206,2549.7,2549.3,2.4379]
[1726910299564,4.7413642,2549.7,2549.3,2.4379]
[1726910301223,0.89063989,2549.6,2549.3,2.4379]
[1726910301720,4.7413642,2549.7,2549.3,2.4379]
[1726910302262,0.89063719,2549.6,2549.3,2.4379]
[1726910303365,3.04658308,2549.6,2549.3,2.4379]
[1726910303663,0.8193042,2550.0,2549.8,3.92187]
[1726910303865,0.89121806,2550.0,2549.9,8.08917801]
[1726910304217,4.35839384,2550.1,2550.0,3.92156]
[1726910304455,4.43052004,2550.1,2550.0,3.92156]
[1726910304625,4.43052004,2550.1,2549.9,9.29029881]
[1726910304626,3.53908964,2550.1,2549.9,13.21181881]
[1726910304832,3.53908964,2550.1,2550.0,3.92156]
[1726910307554,2.90722782,2550.1,2550.0,6.35946]
[1726910307754,2.90722782,2550.1,2550.0,7.59297838]
[1726910320111,0.61459814,2550.4,2550.3,3.9211]
[1726910320295,0.63186182,2550.6,2550.5,3.92079]
[1726910320502,0.63186182,2550.6,2550.5,5.65034801]
[1726910320698,2.06574593,2550.7,2550.6,3.92064]
[1726910320898,2.1382666,2550.7,2550.6,3.92064]
[1726910321224,1.24644173,2550.7,2550.6,3.92064]
[1726910321370,1.24644173,2550.7,2550.5,1.72955801]
[1726910321919,1.24644173,2550.7,2550.5,5.65032801]
[1726910322717,0.63186182,2550.7,2550.6,6.22814]
[1726910324390,0.8193042,2551.0,2550.7,3.92044]
[1726910324594,3.04706984,2551.0,2550.8,1.72955801]
[1726910324817,0.8193042,2551.0,2550.8,1.72955801]
[1726910324999,3.04713499,2551.0,2550.8,1.72955801]
[1726910325298,0.8193042,2551.0,2550.8,1.72955801]
[1726910325621,3.04675152,2551.0,2550.8,1.72955801]
[1726910325820,3.72653202,2551.1,2550.8,1.72955801]
[1726910326023,0.89100009,2551.0,2550.8,1.72955801]
[1726910326520,0.89100009,2551.0,2550.6,7.95769801]
[1726910326679,3.04652452,2551.0,2550.6,7.95769801]
[1726910326883,0.89100009,2550.9,2550.6,7.95769801]
[1726910327083,0.8193042,2551.0,2550.6,7.95769801]
[1726910327288,3.04633701,2551.0,2550.6,7.95769801]
[1726910327632,0.8193042,2551.0,2550.6,7.95769801]
[1726910327829,3.04611717,2551.0,2550.6,7.95761801]
[1726910328018,0.8193042,2551.0,2550.6,7.95761801]
[1726910328322,3.04606291,2551.0,2550.6,7.95761801]
[1726910328540,0.8193042,2551.0,2550.6,7.95761801]
[1726910328830,3.04897707,2551.0,2550.6,7.95761801]
[1726910329137,0.8193042,2551.0,2550.6,7.95761801]
[1726910329334,2.22959994,2551.0,2550.6,7.95761801]
[1726910329626,6.96893414,2551.0,2550.6,7.95761801]
[1726910329785,4.7393342,2551.0,2550.6,7.95761801]
[1726910330328,3.92003,2551.0,2550.6,7.95761801]
[1726910330826,0.8193042,2551.0,2550.6,7.95761801]
[1726910331121,3.04875416,2551.0,2550.6,11.87817801]
[1726910331333,0.8193042,2551.0,2550.6,7.95761801]
[1726910331487,3.04871861,2551.0,2550.6,11.87817801]
[1726910331689,0.8193042,2551.0,2550.6,7.95761801]
[1726910331905,3.048732,2551.0,2550.6,7.95761801]
[1726910332103,0.8193042,2551.0,2550.6,7.95761801]
[1726910332340,0.89177247,2551.0,2550.6,7.95761801]
[1726910332921,3.04868527,2551.0,2550.6,7.95761801]
[1726910333172,0.8193042,2551.0,2550.6,7.95761801]
[1726910333310,3.04867815,2551.0,2550.6,7.95761801]